Cogmind - Beta 17 @@@ ROGUE MODE // 2026.07.11 @ 15:30:07 Player: star Result: Destroyed by D-53 Grenadier with Mini Grenade Launcher Performance ------------- Evolutions (3) 1500 Regions Visited (7) 1400 Robots Destroyed (92) 460 Value Destroyed (3073) 3073 Prototype IDs (1) 20 Alien Tech Used (0) 0 Bonus (329) 329 TOTAL SCORE: 6782 Bonus ------- High Alert Combat Kills 102 Follower Combat Kills 152 Entered Garrisons 200 Friendly Fire -125 Cogmind --------- Core Integrity 0/700 Matter 300/300 Energy 100/100 System Corruption 3% Temperature Cool (0) Movement Core (350) Ox6 Location -7/Factory Parts ------- > --- POWER (1) -------- (None) > --- PROPULSION (2) --- (None) > --- UTILITY (6) ------ Large Storage Unit Targeting Computer Core Analyzer > --- WEAPON (4) ------- (None) > --- INVENTORY (15) --- Micro Nuclear Core Large Matter Pod (150) Advanced Weight Redist. System Weapon Cycler Microactuators Makeshift Transmission Jammer Makeshift Cloaking Device Authchip [R/Combat] Authchip [R/Combat] Authchip [R/Combat] Authchip [R/Combat] Authchip [R/Combat] Authchip [R/Combat] High-powered Tractor Beam Peak State ------------ > --- POWER ------------ Light Angular Momentum Engine > --- PROPULSION ------- Armored Treads Armored Treads > --- UTILITY ---------- Medium Storage Unit Advanced Weight Redist. System Melee Analysis Suite Makeshift Cloaking Device > --- WEAPON ----------- Advanced Assault Cannon Advanced Assault Cannon Gauss Cannon Spear > --- INVENTORY -------- Micro Nuclear Core Armored Treads Large Matter Pod Targeting Computer Recoil Stabilizer Makeshift Transmission Jammer Hacking Suite Makeshift System Restoration Module Rocket Launcher [Rating: 41] Favorites ----------- Power Improved Deuterium Engine Engine Improved Deuterium Engine Power Core Micro Nuclear Core Propulsion Armored Treads Treads Armored Treads Leg Carbon-fiber Leg Hover Unit Gravmag System Utility Hacking Suite Device Improved Heat Sink Storage Large Storage Unit Processor Melee Analysis Suite Hackware Hacking Suite Weapon Spear Energy Gun Particle Gun Ballistic Gun Assault Rifle Ballistic Cannon Advanced Assault Cannon Launcher Rocket Launcher Impact Weapon Power Maul Slashing Weapon Mining Claw Piercing Weapon Spear Build | -11 -10 -10 -10 -9 -8 -8 -7 ------- Run | Yrd Mat Min Exi Min Mat Gar Fac Slots Evolved 6 | . . . . . 4 . 2 Power . | . . . . . . . . Propulsion . | . . . . . . . . Utility 4 | . . . . . 2 . 2 Weapon 2 | . . . . . 2 . . Parts Attached 55 | 7 8 . 6 8 10 6 10 Power 9 | 2 1 . 1 1 1 2 1 Engine 8 | 2 1 . . 1 1 2 1 Core 1 | . . . 1 . . . . Reactor . | . . . . . . . . Propulsion 11 | 2 . . 3 2 2 . 2 Treads 3 | . . . . . 2 . 1 Leg 7 | 2 . . 3 2 . . . Wheel . | . . . . . . . . Hover 1 | . . . . . . . 1 Flight . | . . . . . . . . Utility 15 | 1 1 . 1 1 5 2 4 Device 7 | . . . 1 1 1 1 3 Storage 3 | 1 1 . . . 1 . . Processor 3 | . . . . . 1 1 1 Hackware 2 | . . . . . 2 . . Protection . | . . . . . . . . Artifact . | . . . . . . . . Weapon 20 | 2 6 . 1 4 2 2 3 Energy Gun 8 | 1 4 . 1 2 . . . Energy Cannon . | . . . . . . . . Ballistic Gun 3 | 1 . . . . . 1 1 Ballistic Cannon 3 | . . . . 1 2 . . Launcher 2 | . 1 . . . . 1 . Special Weapon . | . . . . . . . . Impact Weapon 1 | . . . . . . . 1 Slashing Weapon 2 | . 1 . . . . . 1 Piercing Weapon 1 | . . . . 1 . . . Special Melee Weapon . | . . . . . . . . Unidentified Prototypes 1 | . . . . . . . 1 Parts Lost 23 | . 2 . . 1 1 4 15 Power 5 | . 1 . . . 1 1 2 Propulsion 4 | . . . . . . . 4 Utility 5 | . . . . . . 2 3 Weapon 9 | . 1 . . 1 . 1 6 Highest Loss Streak 6 | . 1 . . 1 1 2 6 To Critical Strikes . | . . . . . . . . Average Backups 10 | 1 6 9 9 9 9 9 13 Power . | . 1 1 1 1 1 1 . Propulsion . | . . 1 1 . 1 1 . Utility 7 | . 2 3 4 5 6 6 12 Weapon 1 | . 3 4 3 2 1 1 . Tool/Special . | . . . . . . . . Unused Backups 18 | . . . 2 2 1 2 11 Power 1 | . . . . . . . 1 Propulsion 3 | . . . . 2 1 . . Utility 14 | . . . 2 . . 2 10 Weapon . | . . . . . . . . Tool/Special . | . . . . . . . . Average Slot Usage (%) 87 | . 83 85 97 100 96 86 76 Engine 7 | . 12 14 4 11 8 1 6 Core 2 | . . . 9 2 . . . Treads 7 | . . . . . 15 18 7 Leg 11 | . 28 28 28 28 2 . . Hover 1 | . . . . . . . 4 Device 7 | . . . 12 14 6 1 6 Storage 10 | . 14 14 14 14 9 9 7 Processor 9 | . . . . . 8 9 20 Hackware 5 | . . . . . 11 15 6 Energy Gun 6 | . 19 14 14 19 . . . Ballistic Cannon 6 | . . . . 2 25 20 1 Slashing Weapon 3 | . 1 14 14 3 . . . Piercing Weapon 4 | . . . . 2 9 7 6 Peak Build Rating 41 | 6 10 8 20 28 41 38 40 Average Rating 27 | 4 7 8 17 22 37 31 34 On Entrance 17 | . 6 8 8 20 28 36 33 Avg Prop Armor Cover (%) 8 | . . . . . . 11 7 Naked Turns . | . . . . . . . . Heaviest Build 47 | 14 26 18 22 28 44 47 42 Greatest Support 49 | 20 20 20 30 30 49 40 40 Greatest Overweight (x) 10 | 2 1 . . . 1 1 10 Average Overweight (x) . | . . . . . . . . Largest Inventory Capacity 15 | 8 10 10 10 10 15 15 15 Average Capacity 12 | 6 8 10 10 10 10 15 15 Most Carried 15 | 2 9 9 10 10 10 15 15 Average Carried 10 | 1 7 9 9 9 9 9 13 Final Capacity 15 | 8 10 10 10 10 15 15 15 Final Carried 15 | 2 9 9 10 10 10 15 14 Class Distribution -------------------- 54% | Scavenger-Mutant 19% | Mutant 8% | Scavenger-Gunner 8% | Hacker-Gunner 5% | Scavenger-Gladiator Dominant Class ---------------- Mutant | -10/Materials Mutant | -10/Mines Scavenger-Mutant | -10/Exiles Scavenger-Mutant | -9/Mines Scavenger-Gunner | -8/Materials Hacker-Gunner | -8/Garrison Scavenger-Mutant | -7/Factory Resources | -11 -10 -10 -10 -9 -8 -8 -7 ----------- Run | Yrd Mat Min Exi Min Mat Gar Fac Matter Collected 2448 | 198 290 . 245 170 464 533 548 Remotely . | . . . . . . . . Salvage Created 3229 | . 307 . 353 1101 700 327 441 Parts 192 | . 21 . 19 52 54 23 23 Haulers Intercepted 2 | . 1 . . . 1 . . Recyclers Shooed 5 | . . . . 5 . . . Parts Field Recycled . | . . . . . . . . Retrieved Matter . | . . . . . . . . Parts Self-Destructed . | . . . . . . . . Prevented . | . . . . . . . . Parts Restored . | . . . . . . . . Kills | -11 -10 -10 -10 -9 -8 -8 -7 ------- Run | Yrd Mat Min Exi Min Mat Gar Fac Combat Hostiles Destroyed 85 | . 13 . . 13 19 16 24 Melee 26 | . . . . 1 8 . 17 Guns 11 | . 4 . . 7 . . . Cannons 19 | . . . . . 11 6 2 AOE 29 | . 9 . . 5 . 10 5 Classes Destroyed 14 | . 5 . . 5 2 2 . Worker 3 | . 2 . . 1 . . . Builder 3 | . . . . 2 1 . . Hauler 2 | . 1 . . . 1 . . Recycler 8 | . . . . 8 . . . Mechanic 2 | . . . . 2 . . . Operator 4 | . 1 . . . 3 . . Swarmer 24 | . 9 . . 4 5 4 2 Grunt 25 | . 4 . . 7 8 5 1 Brawler 1 | . . . . . . 1 . Duelist 2 | . . . . 1 . . 1 Sentry 4 | . . . . . 4 . . Hunter 5 | . . . . . 2 3 . Programmer 8 | . . . . . . 3 5 Assembled 16 | . . . . 1 . . 15 Thug 1 | . . . . 1 . . . Best Kill Streak 12 | . 9 . . 6 5 5 12 Combat Bots Only 12 | . 7 . . 4 5 5 12 Max Kills in Single Turn 4 | . 4 . . 3 1 2 3 Gunslinging . | . . . . . . . . Exploded 3 | . 2 . . 3 . 2 3 Melee 2 | . . . . 1 1 . 2 Uniques/NPCs Destroyed . | . . . . . . . . Combat | -11 -10 -10 -10 -9 -8 -8 -7 -------- Run | Yrd Mat Min Exi Min Mat Gar Fac Hostile Shots Fired 310 | . 50 . . 35 65 70 90 Missed 96 | . 12 . . 10 29 26 19 Hits 214 | . 38 . . 25 36 44 71 Melee 17 | . . . . 2 . . 15 Projectile 197 | . 38 . . 23 36 44 56 AOE 15 | . . . . . . . 15 Critical Strikes 7 | . . . . 2 1 . 4 Part Disruptions 2 | . . . . 1 . 1 . Damage Taken 4040 | . 488 . 38 415 470 779 1850 Core 1068 | . 47 . 38 127 57 95 704 Absorbed by Shields . | . . . . . . . . Regen/Repaired (Parts) 8 | . . . . . 8 . . Core Remaining (%) 62 | 100 . . . 15 . 72 . Volleys Fired 149 | . 32 . 7 35 28 32 15 Largest 3 | . 2 . 1 2 3 3 2 Hottest 130 | . 130 . 50 130 120 120 65 Shots Fired 269 | . 56 . 7 62 74 50 20 Gun 120 | . 48 . 7 59 . . 6 Cannon 113 | . . . . . 74 34 5 Launcher 36 | . 8 . . 3 . 16 9 Special . | . . . . . . . . Kinetic 130 | . 11 . . . 74 34 11 Thermal 84 | . 37 . . 47 . . . Explosive 36 | . 8 . . 3 . 16 9 Electromagnetic 19 | . . . 7 12 . . . Robot Hit Streak 13 | . 6 . 7 13 8 5 6 Robot Miss Streak 5 | . 5 . . 2 4 2 2 Penetration Max . | . . . . . . . . Secondary Targets 3 | . . . . 3 . . . Max Gunslinging Chain 1 | . . . . 1 . . . Shots Hit Robots 234 | . 32 . 19 60 55 25 43 Core Hits 161 | . 19 . 10 32 29 38 33 Critical Kills . | . . . . . . . . Critical Parts Destroyed . | . . . . . . . . Critical Strikes 12 | . 3 . . 1 6 1 1 Burn 3 | . 3 . . . . . . Blast 6 | . . . . . 5 1 . Impale 3 | . . . . 1 1 . 1 Melee Attacks 107 | . 2 . 14 23 27 5 36 Impact . | . . . . . . . . Slashing 36 | . 2 . 14 17 . . 3 Piercing 71 | . . . . 6 27 5 33 Sneak Attacks 22 | . 2 . . 14 6 . . Combat Hostiles . | . . . . . . . . Follow-up Attacks 2 | . . . . . . . 2 Damage Inflicted 9212 | . 1026 . 858 1941 1695 1667 2025 Guns 1282 | . 419 . 92 725 . . 46 Cannons 1571 | . . . . . 990 469 112 Explosions 2960 | . 499 . 67 399 . 1164 831 Melee 3393 | . 108 . 699 811 705 34 1036 Ramming 6 | . . . . 6 . . . Kinetic 1704 | . 87 . . . 990 469 158 Thermal 1455 | . 332 . 67 658 . . 398 Explosive 2381 | . 499 . . 285 . 1164 433 Electromagnetic 273 | . . . 92 181 . . . Impact . | . . . . . . . . Slashing 1385 | . 108 . 699 440 . . 138 Piercing 2008 | . . . . 371 705 34 898 Highest Corruption 9 | . . . . . 1 1 9 Average Corruption 3 | . . . . . 1 1 4 Corruption Purged 7 | . . . . . . . 7 Corruption Blocked . | . . . . . . . . Effects 47 | . . . . . 2 5 40 Message Errors 6 | . . . . . 1 . 5 Matter Fused 16 | . . . . . 1 1 14 Heat Flow Errors 7 | . . . . . . . 7 Energy Discharges 8 | . . . . . . 2 6 Data Loss (minor) 4 | . . . . . . 1 3 Data Loss (major) 4 | . . . . . . . 4 Alerts 2 | . . . . . . 1 1 Overload Shots . | . . . . . . . . Overflow Damage 417 | . 38 . 64 96 110 . 109 Projectiles 29 | . . . . . 29 . . Explosions 140 | . . . . 31 . . 109 Melee 248 | . 38 . 64 65 81 . . Knockbacks 22 | . . . . 1 14 5 2 Impact 1 | . . . . 1 . . . Kinetic 21 | . . . . . 14 5 2 Secondary . | . . . . . . . . Self-Inflicted Damage 580 | . 79 . 38 49 . 190 224 Shots 17 | . 3 . 1 2 . 7 4 Rammed 1 | . . . . . . . 1 Targets Rammed 2 | . . . . 1 . . 1 Kicked 1 | . . . . 1 . . . Crushed . | . . . . . . . . Highest Temperature 382 | . 345 . 5 382 262 99 268 Average Temperature 92 | . 99 . 5 109 82 33 87 Received Heat Transfer 789 | . 132 . . 206 189 153 109 Effects 3 | . 1 . . 1 1 . . Shutdowns 1 | . . . . 1 . . . Energy Bleed 2 | . 1 . . . 1 . . Siege Activations . | . . . . . . . . Martial Activations . | . . . . . . . . Shielding Activations . | . . . . . . . . Robots Disrupted . | . . . . . . . . Combat Hostiles . | . . . . . . . . Robots Corrupted . | . . . . . . . . Combat Hostiles . | . . . . . . . . Parts Fried . | . . . . . . . . Impact Corruptions . | . . . . . . . . Robots Melted . | . . . . . . . . Combat Hostiles . | . . . . . . . . Parts Melted 5 | . 3 . . 2 . . . Heat Transferred 2881 | . 1036 . 100 1445 . . 300 Parts Sabotaged . | . . . . . . . . Parts Stolen . | . . . . . . . . Parts Stripped . | . . . . . . . . Power Chain Reactions 2 | . . . 1 1 . . . Alert | -11 -10 -10 -10 -9 -8 -8 -7 ------- Run | Yrd Mat Min Exi Min Mat Gar Fac Maximum Alert Level 3 | . 1 . . 1 . 3 2 Low Security (%) 66 | 100 56 100 . 90 100 20 58 Level 1 25 | . 43 . . 9 . 29 39 Level 2 6 | . . . . . . 39 2 Level 3 1 | . . . . . . 10 . Level 4 . | . . . . . . . . Level 5 . | . . . . . . . . High Security . | . . . . . . . . Max Security . | . . . . . . . . Peak Influence 702 | . 271 75 . 235 185 702 421 Initial 368 | . . 75 . . 33 120 368 Average 178 | . 123 63 . 139 61 423 180 Influence Increases 2579 | . 413 . 20 538 570 622 416 Destroy 0b10 Robot/C 1500 | . 260 . . 360 380 320 180 Destroy 0b10 Robot/NC 130 | . 20 . 20 65 25 . . Destroy Leader 274 | . 52 . . 40 102 30 50 Allied During Kill 42 | . . . . 42 . . . Disable Machine 150 | . 15 . . . . 15 120 Anti-Garrison Action 150 | . . . . . . 150 . Destroy Structure 258 | . 36 . . 31 33 92 66 Lose Combat Pursuer 75 | . 30 . . . 30 15 . Influence Decreases 2579 | . 220 148 65 452 471 105 1118 Entered New Map 615 | . . 118 45 . 53 65 334 Time Decay 1714 | . 200 30 20 402 408 . 654 Lost Part 210 | . 20 . . 10 10 40 130 Lost Ally 40 | . . . . 40 . . . Squads Dispatched 15 | . 2 . . 3 4 . 6 Investigation 1 | . . . . 1 . . . Extermination 5 | . . . . . . . 5 Reinforcement 6 | . 2 . . . 3 . 1 Assault 2 | . . . . 2 . . . Garrison 1 | . . . . . 1 . . Intercept . | . . . . . . . . Searches Triggered . | . . . . . . . . Construction Impeded . | . . . . . . . . Haulers Reinforced . | . . . . . . . . Active Scanning Responses . | . . . . . . . . Cargo Convoy Interrupts . | . . . . . . . . Stealth | -11 -10 -10 -10 -9 -8 -8 -7 --------- Run | Yrd Mat Min Exi Min Mat Gar Fac Distress Signals 3 | . . . . . 3 . . Communications Jammed . | . . . . . . . . Distress Signals . | . . . . . . . . Times Spotted 113 | . 19 . . 22 27 18 27 Peak Tracking Total 8 | . 8 . . 4 6 5 7 Tactical Retreats 4 | . 2 . . . 1 1 . Traps | -11 -10 -10 -10 -9 -8 -8 -7 ------- Run | Yrd Mat Min Exi Min Mat Gar Fac Traps Triggered 12 | . 1 . . . 2 5 4 Indirectly . | . . . . . . . . Trap Hack Attempts . | . . . . . . . . Triggered . | . . . . . . . . Disarmed . | . . . . . . . . Reprogrammed . | . . . . . . . . Reused . | . . . . . . . . Traps Extracted . | . . . . . . . . Installed . | . . . . . . . . Triggered . | . . . . . . . . Machines | -11 -10 -10 -10 -9 -8 -8 -7 ---------- Run | Yrd Mat Min Exi Min Mat Gar Fac Machines Disabled 13 | . 1 . 1 . . 3 8 Max in Single Turn 8 | . 1 . 1 . . 1 8 Garrison Relay 2 | . . . . . . 2 . Machines Repaired . | . . . . . . . . Machines Dismantled . | . . . . . . . . Machines Sabotaged . | . . . . . . . . Overloaded Fab Kills . | . . . . . . . . Hacking | -11 -10 -10 -10 -9 -8 -8 -7 --------- Run | Yrd Mat Min Exi Min Mat Gar Fac Machines Accessed 9 | . . . 3 1 4 1 . Terminals 1 | . . . . . . 1 . Fabricators . | . . . . . . . . Repair Stations 1 | . . . . . 1 . . Recycling Units . | . . . . . . . . Scanalyzers 2 | . . . . . 2 . . Garrison Access 1 | . . . . . 1 . . Total Hacks 20 | . . . 4 1 13 2 . Successful 16 | . . . 4 1 11 . . Failed 4 | . . . . . 2 2 . Catastrophic . | . . . . . . . . Database Lockouts . | . . . . . . . . Manual 1 | . . . 1 . . . . Terminals 2 | . . . . . . 2 . Fabricators . | . . . . . . . . Repair Stations 3 | . . . . . 3 . . Recycling Units . | . . . . . . . . Scanalyzers 9 | . . . . . 9 . . Garrison Access 1 | . . . . . 1 . . Terminal Hacks 5 | . . . 4 1 . . . Record 4 | . . . 4 . . . . Open Door 1 | . . . . 1 . . . Fabricator Hacks . | . . . . . . . . Repair Station Hacks 2 | . . . . . 2 . . Scan Component 1 | . . . . . 1 . . Repair 1 | . . . . . 1 . . Recycling Unit Hacks . | . . . . . . . . Scanalyzer 8 | . . . . . 8 . . Insert Component 3 | . . . . . 3 . . Analyze 3 | . . . . . 3 . . Retrieve Study 2 | . . . . . 2 . . Garrison Access Hacks 1 | . . . . . 1 . . Unlock Access 1 | . . . . . 1 . . Unauthorized Hacks . | . . . . . . . . Terminals . | . . . . . . . . Fabricators . | . . . . . . . . Repair Stations . | . . . . . . . . Recycling Units . | . . . . . . . . Scanalyzers . | . . . . . . . . Garrison Access . | . . . . . . . . Data Cores Recovered 1 | . . . . . 1 . . Used . | . . . . . . . . Hacking Detections 4 | . . . . . 3 1 . Full Trace Events 1 | . . . . . . 1 . Feedback Events . | . . . . . . . . Feedback Blocked . | . . . . . . . . Robot Schematics Acquired . | . . . . . . . . Robots Built . | . . . . . . . . Authchips . | . . . . . . . . Time . | . . . . . . . . Total Robot Build Rating . | . . . . . . . . Part Schematics Acquired 3 | . . . . . 3 . . Parts Built . | . . . . . . . . Authchips . | . . . . . . . . Time . | . . . . . . . . Total Part Build Rating . | . . . . . . . . Part Studies Acquired 2 | . . . . . 2 . . Parts Repaired 1 | . . . . . 1 . . Time 70 | . . . . . 70 . . Parts Recycled . | . . . . . . . . Recycled Matter . | . . . . . . . . Retrieved Matter . | . . . . . . . . Retrieved Components . | . . . . . . . . Parts Scanalyzed 3 | . . . . . 3 . . Part Schematics Acquired 3 | . . . . . 3 . . Parts Damaged 1 | . . . . . 1 . . Bothacking | -11 -10 -10 -10 -9 -8 -8 -7 ------------ Run | Yrd Mat Min Exi Min Mat Gar Fac Used RIF Installer . | . . . . . . . . Robots Hacked . | . . . . . . . . Non-combat . | . . . . . . . . Combat . | . . . . . . . . Robot Hacks Applied . | . . . . . . . . Relay Couplers Released 8 | . . . . . . 8 . Machine Destruction 8 | . . . . . . 8 . Fabnet Peak Effective % . | . . . . . . . . Robots Rewired 3 | . . . 3 . . . . Allies Hacked . | . . . . . . . . Hacks Repelled . | . . . . . . . . Allies | -11 -10 -10 -10 -9 -8 -8 -7 -------- Run | Yrd Mat Min Exi Min Mat Gar Fac Total Allies 4 | . . . 3 1 . . . Largest Group 4 | . . . 3 4 . . . Highest-Rated Group 81 | . . . 50 81 . . . Highest-Rated Ally 31 | . . . 21 31 . . . Initial Warlord ECA Mod 3 | . . . . . . . 3 Total Orders . | . . . . . . . . Ally Attacks 31 | . . . . 31 . . . Total Damage 588 | . . . . 588 . . . Kills 8 | . . . . 8 . . . Allies Corrupted . | . . . . . . . . Allies Melted . | . . . . . . . . Intel | -11 -10 -10 -10 -9 -8 -8 -7 ------- Run | Yrd Mat Min Exi Min Mat Gar Fac Active Infowar (turns) 445 | . . . . 162 283 . . Cloaking 445 | . . . . 162 283 . . Robot Analysis Total . | . . . . . . . . Derelict Logs Recovered 2 | . . . . 2 . . . Drone Launches . | . . . . . . . . Drone Recoveries . | . . . . . . . . Exploration | -11 -10 -10 -10 -9 -8 -8 -7 ------------- Run | Yrd Mat Min Exi Min Mat Gar Fac Turns Passed 7061 | 67 497 65 1169 1024 1014 803 2422 Spaces Moved 3213 | 49 283 54 890 593 453 338 553 Core 23 | 19 . . . . . . 4 Treads 1246 | . . . . . 361 338 547 Legs 1942 | 30 283 54 890 593 92 . . Wheels . | . . . . . . . . Hover 2 | . . . . . . . 2 Flight . | . . . . . . . . Fastest Speed 50 | 50 120 120 120 120 120 170 170 Average Speed 148 | 114 124 120 120 120 163 195 203 Slowest Speed 550 | 150 190 120 120 120 250 210 550 Overloaded Moves . | . . . . . . . . Propulsion Burnouts . | . . . . . . . . Robots Hopped . | . . . . . . . . Potential Cave-ins 2 | . . . . . 2 . . Cave-ins Triggered . | . . . . . . . . Exploration Rate (%) 45 | 3 59 17 91 79 47 56 14 Regions Visited 7 Branch Regions 3 Pre-discovered Areas 1 | . . . 1 . . . . Known Exits Taken 1 | . . . . . 1 . . Unknown Exits Taken 5 | 1 1 1 1 1 . . . Scrap Searched 2 | . . . . 2 . . . Spaces Dug 7 | . . . . . 7 . . Terrain Destroyed 289 | . 35 . 5 35 36 92 86 Melee 7 | . . . . . 7 . . Projectile 30 | . . . . . 29 1 . AOE 252 | . 35 . 5 35 . 91 86 Terrain Rammed . | . . . . . . . . Walls Destroyed . | . . . . . . . . Machines Disabled . | . . . . . . . . Actions | -11 -10 -10 -10 -9 -8 -8 -7 --------- Run | Yrd Mat Min Exi Min Mat Gar Fac Total 5060 | 56 360 54 960 803 626 422 1779 Wait 1395 | . 20 1 5 117 88 14 1150 Move 3207 | 48 282 53 889 592 453 337 553 Hop . | . . . . . . . . Pick Up 43 | 1 7 . 5 9 8 9 4 Fast Attach 21 | 6 2 . 1 . 3 3 6 Attach 13 | . 1 . . 1 6 2 3 Detach 5 | . 1 . . . 3 1 . Swap 47 | 1 12 . 5 13 5 5 6 Drop 33 | . 1 . 8 12 5 4 3 Fire 149 | . 32 . 7 35 28 32 15 Melee 105 | . 2 . 14 23 27 5 34 Ram 1 | . . . . . . . 1 Kick 1 | . . . . 1 . . . Crush . | . . . . . . . . Escape Stasis 14 | . . . . . . 10 4 Rewire 26 | . . . 26 . . . . Trap . | . . . . . . . . Miscellaneous . | . . . . . . . . Route ------- -11/Scrapyard -10/Materials (discovered 2 exits: [*Mat] / [*Min]) -10/Mines -10/Exiles -9/Mines (discovered 2 exits: *Mat x2) -8/Materials (discovered 4 exits: *Fac x2 / [*Sto] / Gar) -8/Garrison -7/Factory (discovered 1 exit: [*Fac]) History --------- Turn | Location | Event 33 | -11/Scrapyard | Discovered new exit (range 12) 68 | -11/Scrapyard | Entered Materials 308 | -10/Materials | Build established: Mutant 320 | -10/Materials | Discovered new exit (range 10) 356 | -10/Materials | Destroyed 7 combat bots 456 | -10/Materials | Discovered new exit (range 16) 565 | -10/Materials | Entered Mines 625 | -10/Mines | Deemed a non-threat by the Exiles lab entrance 625 | -10/Mines | Discovered new exit (range 5) 630 | -10/Mines | Entered Exiles 630 | -10/Exiles | Found Exiles lab destroyed 1178 | -10/Exiles | Build established: Scavenger-Mutant 1362 | -10/Exiles | Learned location of Zion (-7) 1418 | -10/Exiles | Discovered new exit (range 12) 1799 | -10/Exiles | Entered Mines 1799 | -9/Mines | Accompanied by 3 allies 1800 | -9/Mines | Met a Derelict testing a Signal Generator 1811 | -9/Mines | Found Signal Generator 1855 | -9/Mines | Core integrity fell below 50% 1858 | -9/Mines | Discovered new exit (range 10) 1872 | -9/Mines | Learned Materials emergency access door positions 1948 | -9/Mines | Excavation squad dispatched 1948 | -9/Mines | A large section of the Mines collapsed 1990 | -9/Mines | Lost 3 allies 2099 | -9/Mines | Core integrity fell below 20% 2134 | -9/Mines | Learned Materials interactive machine intel 2491 | -9/Mines | Discovered new exit (range 13) 2552 | -9/Mines | Received a Rocket Launcher from a helpful Derelict 2625 | -9/Mines | Met a Derelict shopkeep closing up shop 2823 | -9/Mines | Entered Materials 2823 | -8/Materials | Evolved 4 slots: Utility x2, Weapon x2 2825 | -8/Materials | Loaded intel: 18 interactive machine locations 3321 | -8/Materials | Discovered new exit (range 3) 3329 | -8/Materials | Discovered new exit (range 16) 3487 | -8/Materials | Repaired Broken Mak. Cloaking Device 3624 | -8/Materials | Discovered new exit (range 3) 3794 | -8/Materials | Garrison activated, responded to threat 3837 | -8/Materials | Identified exit to Garrison 3837 | -8/Materials | Entered Garrison 4031 | -8/Garrison | Build established: Hacker-Gunner 4083 | -8/Garrison | Garrison Relay disabled 4230 | -8/Garrison | Triggered checkpoint 4259 | -8/Garrison | Triggered checkpoint 4356 | -8/Garrison | Garrison Relay disabled 4371 | -8/Garrison | Triggered checkpoint 4484 | -8/Garrison | Discovered new exit (range 10) 4640 | -8/Garrison | Entered Factory 4640 | -7/Factory | Evolved 2 slots: Utility x2 4972 | -7/Factory | Build established: Scavenger-Gladiator 5028 | -7/Factory | Assembled infested ambush trap array 5082 | -7/Factory | Core integrity fell below 50% 5106 | -7/Factory | Lost 3 parts (3w) 5117 | -7/Factory | Destroyed 12 combat bots 5336 | -7/Factory | Discovered new exit (range 16) 5646 | -7/Factory | Build established: Scavenger-Mutant 7051 | -7/Factory | Core integrity fell below 20% 7062 | -7/Factory | Destroyed by D-53 Grenadier with Mini Grenade Launcher Last Messages --------------- 07028_ System corrupted: Matter fused (-9). 07032_ K-01 Serf collects debris. 07039_ C-45 Heavy ARC bursts open, deploying its payload. 07039_ D-53 Grenadier unfolds itself. 07046_ K-01 Serf collects debris. 07050_ Spear destroyed. 07052_ Hacking Suite destroyed. 07054_ The unstable cave ceiling collapses. 07055_ U-05 Engineer lays Concrete. 07056_ The unstable cave ceiling collapses. 07056_ U-05 Engineer lays Concrete. 07060_ Nuclear Reactor explodes. 07060_ Imp. Deuterium Engine destroyed. 07060_ D-53 Grenadier destroyed. 07060_ Arm. Treads+ destroyed. 07060_ Gravmag System destroyed. 07060_ Mak. System Restoration Module destroyed. 07060_ U-05 Engineer lays Concrete. 07061_ R-06 Scavenger collects Imp. Heat Sink. 07062_ Slammed into D-53 Grenadier. Map ----- +----------------------------------------------------+ | ????# """ # #?????? ????????????????????? | | ????# # #?????? ????????????????????? | | ?########### #???###/############+????????? | | ?# === # #???# ?????????? | | ?# === # #???# ?????????? | | ?# == # #???# "" ??????????? | | ??? # ##### """! ????????????? | | ?????! # "F!! ?????????????? | | ??????? # """! #???????????????# | | ????????#/## "" #?????????????? # | | ?######?# #???###########+# | | ?# # #???# | | ?# # #???#[= | | ?# + ! ####???#[= | | ?# !!= ##########r## #??????# | | ?# !!= ?????# ! # #??????# | | ?# !== ??????# # ######## | | ?######??????# # t # | | ?????????????# [ u # | | ?????????????# + [ | | ????????????## k # | | ???????###### # | | ??????+# # | | ?????? # ###+#######+# | | ?????? # """ | | ?????? # ? """ @ | | ?????? ?? """ d | | ?????? # | | ?????? # """ | | ?????# #???""" # T###########+## | | ?????# #???""" # ####???????? | | ?????# #??? ####?????????# | | ?????# #??? ############## | | ?????# #? ]# # ! # | | ?????#%#?############ # # | | ?????#%#????????????#% # # | | ?????#%#????????????# # * # ! | | ?????#%#??########### # """" """" # | | ?????# #??# ! # # """" """" ####### | | ?????# #??# # # """" """" #?????? | | ?????#%#??# # + """" """" ???????? | | ?????#%#??# ! + # """" """"????????? | | ?????# #??# = # # """" """"????????? | | ?????# #??# !/! # # """" "???????????? | | ?????# #??# ! ! # # ????????????? | | ?????# #??# // + #########?#?######## | | ?????# #??######+#### # #?# | | ?????# #???????# #??# # """""" #?# | | ?????# #???????# #??# + """""" #?# | | ???### ############## # """""" #?# | +----------------------------------------------------+ Best States ------------- Heat Dissipation 39 Energy Generation 18 Energy Capacity 290 Matter Stores 300 Matter Capacity 300 Sight Range 16 Terrain Scan Density 10 Cloak Strength 3 Additional Mass Support 9 Weapon Cycling 15 Melee Speed Boost 20 Evasion (%) 55 Targeting Accuracy 5 Melee Accuracy 5 Core Analysis 6 Recoil Reduction 6 Offensive Hacking 20 Authchip Count 7 Item Schematics ----------------- Gauss Cannon | -8/Materials | Scanalyzed Adv. Assault Cannon | -8/Materials | Scanalyzed Mak. Cloaking Device | -8/Materials | Scanalyzed Robot Schematics ------------------ None Fabricated ------------ Nothing Repaired ---------- Mak. Cloaking Device | 68% | -8/Materials | Broken Studied --------- Rocket Launcher | -8/Materials | Hacked Arm. Treads | -8/Materials | Hacked Alien Tech Used ----------------- None Achievements -------------- None Challenges ------------ None Game ------ Seed ScanGlidesysMesh Manual? 0 Play Time 00:43:15 Cumulative 230.5 hours Start 2026.07.11 @ 13:37:36 End 2026.07.11 @ 15:30:07 Sessions 1 Manual Loads 0 Difficulty Rogue Special Mode None Game No. 377 Rogue 377 Adventurer 0 Explorer 0 Win Type - Total 2 Types 2/0/0/0/0/0/0/0/0/0 Lore% 66 Gallery% 61 Achievement% 50 Wizard Run 0 Options --------- Layout 2 ASCII 0 Keyboard 1 Movement Numpad Keybinds 0 Fullscreen 1 Font 20/SmallcapsGlow Map View 64x51 Zoom Use 0% Tactical HUD 1 Map Filters NONE Filters NONE Steam 1 RUN: 42a9bbb6-f174-4c5b-94c4-873aeae45e21